[Event "Live Chess"]
[Site "Chess.com"]
[Date "2023.05.20"]
[Round "-"]
[White "jennybobby44"]
[Black "AdamOwls"]
[Result "1/2-1/2"]
[WhiteElo "1871"]
[BlackElo "1930"]
[TimeControl "300"]
[EndTime "11:43:21 PDT"]
[Termination "Game drawn by agreement"]

1. Nf3 {[%clk 0:04:58.6]} 1... d5 {[%clk 0:04:57.7]} 2. g3 {[%clk 0:04:56.6]}
2... Nf6 {[%clk 0:04:55.4]} 3. Bg2 {[%clk 0:04:55.8]} 3... e6 {[%clk 0:04:53.7]}
4. O-O {[%clk 0:04:54.9]} 4... Be7 {[%clk 0:04:52.9]} 5. d4 {[%clk 0:04:54.1]}
5... b5 {[%clk 0:04:52.2]} 6. b3 {[%clk 0:04:51.7]} 6... O-O {[%clk 0:04:49.7]}
7. Bb2 {[%clk 0:04:51]} 7... Bb7 {[%clk 0:04:45.9]} 8. Nbd2 {[%clk 0:04:50]}
8... c5 {[%clk 0:04:42.9]} 9. dxc5 {[%clk 0:04:45.8]} 9... Bxc5 {[%clk
0:04:40.8]} 10. e3 {[%clk 0:04:36.2]} 10... Nbd7 {[%clk 0:04:37.3]} 11. h3
{[%clk 0:04:22.2]} 11... Qe7 {[%clk 0:04:35.4]} 12. Ne5 {[%clk 0:04:20.4]} 12...
Rfd8 {[%clk 0:04:29]} 13. Qe2 {[%clk 0:04:14.7]} 13... Rac8 {[%clk 0:04:25.6]}
14. Qxb5 {[%clk 0:04:03.9]} 14... Nxe5 {[%clk 0:04:18.5]} 15. Bxe5 {[%clk
0:03:58.8]} 15... Bb6 {[%clk 0:04:07.4]} 16. Rac1 {[%clk 0:03:29.8]} 16... Rc5
{[%clk 0:03:57.3]} 17. Qe2 {[%clk 0:03:24.7]} 17... Rdc8 {[%clk 0:03:55.2]} 18.
Bd4 {[%clk 0:03:06.3]} 18... Rxc2 {[%clk 0:03:49.5]} 19. Rxc2 {[%clk 0:02:59.7]}
19... Rxc2 {[%clk 0:03:49.4]} 20. Bxb6 {[%clk 0:02:54.3]} 20... axb6 {[%clk
0:03:49.3]} 21. a4 {[%clk 0:02:49.5]} 21... Qb4 {[%clk 0:03:33.8]} 22. Rd1
{[%clk 0:02:39.4]} 22... h6 {[%clk 0:03:32.4]} 23. Qd3 {[%clk 0:02:32.1]} 23...
Rc3 {[%clk 0:03:25.3]} 24. Qd4 {[%clk 0:02:22]} 24... Qxd4 {[%clk 0:03:17.6]}
25. exd4 {[%clk 0:02:20.7]} 25... Rd3 {[%clk 0:03:17.3]} 26. Bf1 {[%clk
0:02:10.1]} 26... Rxd4 {[%clk 0:03:14]} 27. Be2 {[%clk 0:02:09.3]} 27... Nd7
{[%clk 0:02:50.6]} 28. Nf3 {[%clk 0:02:07.5]} 28... Rxd1+ {[%clk 0:02:50.5]} 29.
Bxd1 {[%clk 0:02:06.8]} 29... Nc5 {[%clk 0:02:48.3]} 30. Nd4 {[%clk 0:02:03.2]}
30... Ba6 {[%clk 0:02:44.1]} 31. b4 {[%clk 0:01:54.9]} 31... Ne4 {[%clk
0:02:41.1]} 32. a5 {[%clk 0:01:41]} 32... bxa5 {[%clk 0:02:36.1]} 33. bxa5
{[%clk 0:01:40.9]} 33... Nc5 {[%clk 0:02:31.1]} 34. Kg2 {[%clk 0:01:36.5]} 34...
Kf8 {[%clk 0:02:29.7]} 35. Kf3 {[%clk 0:01:35.8]} 35... Ke7 {[%clk 0:02:29]} 36.
Ke3 {[%clk 0:01:35.2]} 36... Kd6 {[%clk 0:02:27]} 37. f4 {[%clk 0:01:33]} 37...
f6 {[%clk 0:02:25.3]} 38. g4 {[%clk 0:01:28.1]} 38... e5 {[%clk 0:02:23.7]} 39.
fxe5+ {[%clk 0:01:27.4]} 39... fxe5 {[%clk 0:02:23.6]} 40. Nf5+ {[%clk
0:01:27.1]} 40... Ke6 {[%clk 0:02:01.2]} 41. Nxg7+ {[%clk 0:01:26.3]} 41... Kf6
{[%clk 0:02:00.7]} 42. Nh5+ {[%clk 0:01:24.3]} 42... Kg5 {[%clk 0:01:59.1]} 43.
Ng3 {[%clk 0:01:10.8]} 43... Nb7 {[%clk 0:01:57.8]} 44. Nf5 {[%clk 0:01:09.7]}
44... Nxa5 {[%clk 0:01:54]} 45. h4+ {[%clk 0:01:09]} 45... Kg6 {[%clk
0:01:51.1]} 46. Ne7+ {[%clk 0:01:08.4]} 46... Kf7 {[%clk 0:01:45.8]} 47. Nxd5
{[%clk 0:01:07.6]} 1/2-1/2

[Event "Live Chess"]
[Site "Chess.com"]
[Date "2023.05.20"]
[Round "-"]
[White "Yehor20132013"]
[Black "LL220284LL"]
[Result "0-1"]
[WhiteElo "483"]
[BlackElo "2397"]
[TimeControl "300"]
[EndTime "11:43:35 PDT"]
[Termination "LL220284LL won by resignation"]

1. e4 {[%clk 0:04:58.3]} 1... d5 {[%clk 0:04:58.3]} 2. exd5 {[%clk 0:04:48.7]}
2... Qxd5 {[%clk 0:04:58.2]} 3. d3 {[%clk 0:04:36.4]} 3... Nf6 {[%clk 0:04:56]}
4. Bg5 {[%clk 0:04:33.4]} 4... Qxg5 {[%clk 0:04:54.5]} 5. Qd2 {[%clk 0:04:28.2]}
5... Qg6 {[%clk 0:04:51.7]} 6. Nf3 {[%clk 0:04:24.2]} 6... Nc6 {[%clk
0:04:49.4]} 7. Be2 {[%clk 0:04:20.3]} 7... e5 {[%clk 0:04:48.3]} 8. Nc3 {[%clk
0:04:16.5]} 8... Bb4 {[%clk 0:04:46.6]} 9. d4 {[%clk 0:04:07]} 9... exd4 {[%clk
0:04:43.9]} 10. Nxd4 {[%clk 0:04:04.1]} 10... O-O {[%clk 0:04:37.2]} 11. O-O
{[%clk 0:04:01.2]} 11... Ne4 {[%clk 0:04:33.4]} 12. Bd3 {[%clk 0:03:50.4]} 12...
Nxd2 {[%clk 0:04:30.5]} 13. Bxg6 {[%clk 0:03:48.1]} 13... Nxd4 {[%clk
0:04:29.3]} 14. Bd3 {[%clk 0:03:35.3]} 14... Nxf1 {[%clk 0:04:26.6]} 15. Kxf1
{[%clk 0:03:32.7]} 15... Bf5 {[%clk 0:04:25]} 16. Bxf5 {[%clk 0:03:29.9]} 16...
Nxf5 {[%clk 0:04:24.9]} 17. Nd5 {[%clk 0:03:27.3]} 17... Bd6 {[%clk 0:04:24]}
0-1

[Event "Live Chess"]
[Site "Chess.com"]
[Date "2023.05.20"]
[Round "-"]
[White "ReceptiveCamel"]
[Black "Albul"]
[Result "0-1"]
[WhiteElo "626"]
[BlackElo "2162"]
[TimeControl "300"]
[EndTime "11:43:38 PDT"]
[Termination "Albul won by checkmate"]

1. Nc3 {[%clk 0:04:53.3]} 1... f5 {[%clk 0:04:58.5]} 2. Nf3 {[%clk 0:04:51]}
2... Nf6 {[%clk 0:04:56.9]} 3. d4 {[%clk 0:04:44.9]} 3... g6 {[%clk 0:04:56]} 4.
Bg5 {[%clk 0:04:40.2]} 4... Bg7 {[%clk 0:04:54.7]} 5. Bxf6 {[%clk 0:04:38.9]}
5... Bxf6 {[%clk 0:04:54.3]} 6. e4 {[%clk 0:04:36.2]} 6... d6 {[%clk 0:04:53.7]}
7. exf5 {[%clk 0:04:34.8]} 7... Bxf5 {[%clk 0:04:52.3]} 8. Bd3 {[%clk
0:04:32.2]} 8... Qd7 {[%clk 0:04:51.6]} 9. Bxf5 {[%clk 0:04:30.8]} 9... Qxf5
{[%clk 0:04:50.2]} 10. O-O {[%clk 0:04:27]} 10... O-O {[%clk 0:04:48.2]} 11. g3
{[%clk 0:04:22.6]} 11... Nc6 {[%clk 0:04:40.9]} 12. Nh4 {[%clk 0:04:19.5]} 12...
Bxh4 {[%clk 0:04:38.7]} 13. gxh4 {[%clk 0:04:17.3]} 13... e5 {[%clk 0:04:36.5]}
14. Re1 {[%clk 0:04:14.3]} 14... Qxf2+ {[%clk 0:04:33]} 15. Kh1 {[%clk
0:04:11.3]} 15... Nxd4 {[%clk 0:04:32.5]} 16. Re2 {[%clk 0:04:06.2]} 16... Nxe2
{[%clk 0:04:21.2]} 17. Qxe2 {[%clk 0:04:03.9]} 17... Qxe2 {[%clk 0:04:20.2]} 18.
Nxe2 {[%clk 0:04:01.9]} 18... Rf2 {[%clk 0:04:19.8]} 19. Re1 {[%clk 0:03:59.5]}
19... Raf8 {[%clk 0:04:18.4]} 20. Ng3 {[%clk 0:03:57.5]} 20... Rxc2 {[%clk
0:04:16.6]} 21. Rb1 {[%clk 0:03:51.4]} 21... Rff2 {[%clk 0:04:14.3]} 22. Ne4
{[%clk 0:03:47.2]} 22... Rxh2+ {[%clk 0:04:12.8]} 23. Kg1 {[%clk 0:03:45.4]}
23... Kg7 {[%clk 0:04:06.6]} 24. Ng5 {[%clk 0:03:37.9]} 24... Rxh4 {[%clk
0:03:58.5]} 25. Nf3 {[%clk 0:03:36.2]} 25... Rg4+ {[%clk 0:03:54.7]} 26. Kf1
{[%clk 0:03:33.6]} 26... Rf4 {[%clk 0:03:53.8]} 27. Re1 {[%clk 0:03:26.3]} 27...
Rxf3+ {[%clk 0:03:52.3]} 28. Kg1 {[%clk 0:03:24.1]} 28... Rxb2 {[%clk
0:03:50.1]} 29. Kh1 {[%clk 0:03:22.9]} 29... Rxa2 {[%clk 0:03:48]} 30. Rg1
{[%clk 0:03:21.4]} 30... Rh3# {[%clk 0:03:44.8]} 0-1

[Event "Live Chess"]
[Site "Chess.com"]
[Date "2023.05.20"]
[Round "-"]
[White "Tushinskiy"]
[Black "mattihelenius2"]
[Result "1-0"]
[WhiteElo "2115"]
[BlackElo "490"]
[TimeControl "300"]
[EndTime "11:43:46 PDT"]
[Termination "Tushinskiy won by checkmate"]

1. d4 {[%clk 0:04:57.7]} 1... d5 {[%clk 0:04:43.7]} 2. c3 {[%clk 0:04:57.6]}
2... e6 {[%clk 0:04:39.3]} 3. Nf3 {[%clk 0:04:57.5]} 3... Nf6 {[%clk 0:04:38.3]}
4. Bf4 {[%clk 0:04:50.3]} 4... Nc6 {[%clk 0:04:33.1]} 5. Bg3 {[%clk 0:04:50.2]}
5... e5 {[%clk 0:04:31.8]} 6. Nxe5 {[%clk 0:04:47.1]} 6... Nxe5 {[%clk
0:04:30.4]} 7. Bxe5 {[%clk 0:04:47]} 7... Ne4 {[%clk 0:04:28.6]} 8. Nd2 {[%clk
0:04:44.8]} 8... Bg4 {[%clk 0:04:27.4]} 9. Nxe4 {[%clk 0:04:31.6]} 9... dxe4
{[%clk 0:04:26.2]} 10. Qb3 {[%clk 0:04:29.8]} 10... f6 {[%clk 0:04:12.7]} 11.
Bg3 {[%clk 0:04:25.6]} 11... Bd6 {[%clk 0:04:02.1]} 12. Qxb7 {[%clk 0:04:19.2]}
12... Rc8 {[%clk 0:04:00.2]} 13. Qxe4+ {[%clk 0:04:17.9]} 13... Kf7 {[%clk
0:03:57]} 14. Qxg4 {[%clk 0:04:12]} 14... g5 {[%clk 0:03:50.5]} 15. e4 {[%clk
0:04:08.8]} 15... Bxg3 {[%clk 0:03:48.9]} 16. Bc4+ {[%clk 0:04:06.2]} 16... Ke8
{[%clk 0:03:43.7]} 17. hxg3 {[%clk 0:04:06.1]} 17... Rg8 {[%clk 0:03:41.8]} 18.
Bxg8 {[%clk 0:04:03.9]} 18... Ke7 {[%clk 0:03:39.2]} 19. Qe6+ {[%clk 0:04:00.9]}
19... Kf8 {[%clk 0:03:35.1]} 20. Qf7# {[%clk 0:04:00.8]} 1-0

[Event "Live Chess"]
[Site "Chess.com"]
[Date "2023.05.20"]
[Round "-"]
[White "Goblinbasher"]
[Black "JoshMcK"]
[Result "0-1"]
[WhiteElo "1199"]
[BlackElo "1538"]
[TimeControl "300"]
[EndTime "11:43:59 PDT"]
[Termination "JoshMcK won by resignation"]

1. e4 {[%clk 0:04:49]} 1... c6 {[%clk 0:04:58]} 2. d4 {[%clk 0:04:47.2]} 2... d5
{[%clk 0:04:56.7]} 3. Nc3 {[%clk 0:04:43.8]} 3... dxe4 {[%clk 0:04:50.7]} 4.
Nxe4 {[%clk 0:04:40.9]} 4... Nf6 {[%clk 0:04:50.3]} 5. Nxf6+ {[%clk 0:04:39.4]}
5... exf6 {[%clk 0:04:50.2]} 6. Nf3 {[%clk 0:04:38.4]} 6... Bd6 {[%clk
0:04:40.8]} 7. Be2 {[%clk 0:04:36.2]} 7... O-O {[%clk 0:04:38.8]} 8. O-O {[%clk
0:04:33.6]} 8... Re8 {[%clk 0:04:20.2]} 9. Bd3 {[%clk 0:04:29.1]} 9... Nd7
{[%clk 0:04:04.3]} 10. c3 {[%clk 0:04:15.7]} 10... Nf8 {[%clk 0:04:01.9]} 11.
Nh4 {[%clk 0:03:59.2]} 11... Bc7 {[%clk 0:03:55.8]} 12. Nf5 {[%clk 0:03:55]}
12... Qd5 {[%clk 0:03:40.4]} 13. Qh5 {[%clk 0:03:28.4]} 13... g6 {[%clk
0:03:26.7]} 14. Nh6+ {[%clk 0:03:19.4]} 14... Kg7 {[%clk 0:03:23.2]} 15. Nf5+
{[%clk 0:03:06.3]} 15... Kh8 {[%clk 0:03:17.9]} 16. Qh6 {[%clk 0:02:18.4]} 16...
Bxf5 {[%clk 0:03:11.3]} 17. Bxf5 {[%clk 0:02:05.8]} 17... Qxf5 {[%clk
0:03:11.2]} 18. Be3 {[%clk 0:01:51.1]} 18... Qh5 {[%clk 0:02:53.9]} 19. Qxh5
{[%clk 0:01:42.6]} 19... gxh5 {[%clk 0:02:53.2]} 20. Rae1 {[%clk 0:01:39.4]}
20... Ne6 {[%clk 0:02:43.2]} 21. g3 {[%clk 0:01:36.1]} 21... Ng5 {[%clk
0:02:41.6]} 22. Kg2 {[%clk 0:01:28.9]} 22... Re6 {[%clk 0:02:38.7]} 23. h4
{[%clk 0:01:22.7]} 23... Ne4 {[%clk 0:02:34.6]} 24. f3 {[%clk 0:01:07.5]} 24...
Nd6 {[%clk 0:02:30.3]} 25. Bf4 {[%clk 0:00:58.3]} 25... Rae8 {[%clk 0:02:24.3]}
26. Kf2 {[%clk 0:00:55]} 26... Nb5 {[%clk 0:02:13.3]} 27. Bxc7 {[%clk
0:00:44.8]} 27... Nxc7 {[%clk 0:02:13.2]} 28. a3 {[%clk 0:00:35]} 28... Nd5
{[%clk 0:02:01]} 29. Rxe6 {[%clk 0:00:33.1]} 29... Rxe6 {[%clk 0:01:58.7]} 30.
Re1 {[%clk 0:00:28.9]} 30... Kg8 {[%clk 0:01:55.9]} 31. Re4 {[%clk 0:00:24.1]}
31... Kf8 {[%clk 0:01:47.3]} 32. Ke2 {[%clk 0:00:15.9]} 32... f5 {[%clk
0:01:31]} 33. Kd3 {[%clk 0:00:13.9]} 33... fxe4+ {[%clk 0:01:29.4]} 34. fxe4
{[%clk 0:00:13]} 34... Nb6 {[%clk 0:01:27.2]} 0-1

[Event "Live Chess"]
[Site "Chess.com"]
[Date "2023.05.20"]
[Round "-"]
[White "omisoc"]
[Black "Rusty_Bridges"]
[Result "1-0"]
[WhiteElo "2151"]
[BlackElo "1419"]
[TimeControl "300"]
[EndTime "11:44:07 PDT"]
[Termination "omisoc won by resignation"]

1. b3 {[%clk 0:04:56]} 1... d5 {[%clk 0:04:57.7]} 2. Bb2 {[%clk 0:04:55.7]} 2...
Nf6 {[%clk 0:04:55.3]} 3. e3 {[%clk 0:04:55.6]} 3... e6 {[%clk 0:04:51.2]} 4.
Nf3 {[%clk 0:04:55.2]} 4... Nc6 {[%clk 0:04:49]} 5. d4 {[%clk 0:04:53]} 5... Be7
{[%clk 0:04:42.9]} 6. Bd3 {[%clk 0:04:51.4]} 6... b6 {[%clk 0:04:38.6]} 7. O-O
{[%clk 0:04:50.7]} 7... Bb7 {[%clk 0:04:37.4]} 8. a3 {[%clk 0:04:49.3]} 8... Qd7
{[%clk 0:04:32.1]} 9. c4 {[%clk 0:04:47.6]} 9... O-O-O {[%clk 0:04:28]} 10. Nc3
{[%clk 0:04:46.2]} 10... h6 {[%clk 0:04:23.8]} 11. b4 {[%clk 0:04:39.8]} 11...
g5 {[%clk 0:04:18.5]} 12. b5 {[%clk 0:04:36.9]} 12... Na5 {[%clk 0:04:14.7]} 13.
Ne5 {[%clk 0:04:35.7]} 13... Qe8 {[%clk 0:04:12.5]} 14. c5 {[%clk 0:04:32.3]}
14... bxc5 {[%clk 0:04:06.2]} 15. Qa4 {[%clk 0:04:29.8]} 15... Nc4 {[%clk
0:03:55.4]} 16. Bxc4 {[%clk 0:04:27]} 16... dxc4 {[%clk 0:03:52.8]} 17. Qxa7
{[%clk 0:04:26.6]} 17... Bd6 {[%clk 0:03:44.6]} 18. f4 {[%clk 0:04:11.3]} 18...
Nd5 {[%clk 0:03:39]} 19. Nxd5 {[%clk 0:04:07.4]} 19... exd5 {[%clk 0:03:37.4]}
20. dxc5 {[%clk 0:04:06]} 20... Bxe5 {[%clk 0:03:25]} 21. c6 {[%clk 0:04:04.2]}
1-0

[Event "Live Chess"]
[Site "Chess.com"]
[Date "2023.05.20"]
[Round "-"]
[White "domrobson"]
[Black "xx_blindpuffin_xx"]
[Result "0-1"]
[WhiteElo "1746"]
[BlackElo "2211"]
[TimeControl "300"]
[EndTime "11:44:07 PDT"]
[Termination "xx_blindpuffin_xx won by resignation"]

1. d4 {[%clk 0:04:58]} 1... d5 {[%clk 0:04:58.9]} 2. c4 {[%clk 0:04:57.1]} 2...
e6 {[%clk 0:04:57.7]} 3. Nf3 {[%clk 0:04:55.7]} 3... c6 {[%clk 0:04:56.9]} 4.
Nc3 {[%clk 0:04:55.3]} 4... dxc4 {[%clk 0:04:54.6]} 5. a4 {[%clk 0:04:52.4]}
5... Bb4 {[%clk 0:04:53.2]} 6. e3 {[%clk 0:04:51.9]} 6... b5 {[%clk 0:04:52.2]}
7. axb5 {[%clk 0:04:49.8]} 7... cxb5 {[%clk 0:04:50.8]} 8. Bd2 {[%clk
0:04:49.5]} 8... Bxc3 {[%clk 0:04:46.7]} 9. Bxc3 {[%clk 0:04:47.2]} 9... a5
{[%clk 0:04:45.9]} 10. b3 {[%clk 0:04:46.2]} 10... Bb7 {[%clk 0:04:44.8]} 11.
bxc4 {[%clk 0:04:44.5]} 11... b4 {[%clk 0:04:44.4]} 12. Bb2 {[%clk 0:04:43.6]}
12... Nf6 {[%clk 0:04:44]} 13. Bd3 {[%clk 0:04:41.3]} 13... O-O {[%clk
0:04:42.8]} 14. O-O {[%clk 0:04:40.6]} 14... Nbd7 {[%clk 0:04:41.1]} 15. Qc2
{[%clk 0:04:38.3]} 15... Qc7 {[%clk 0:04:34.5]} 16. Nd2 {[%clk 0:04:33.7]} 16...
a4 {[%clk 0:04:29.7]} 17. Rxa4 {[%clk 0:04:25.5]} 17... Qc6 {[%clk 0:04:27.3]}
0-1

[Event "Live Chess"]
[Site "Chess.com"]
[Date "2023.05.20"]
[Round "-"]
[White "DRS44"]
[Black "Ninifu"]
[Result "0-1"]
[WhiteElo "1436"]
[BlackElo "1985"]
[TimeControl "300"]
[EndTime "11:44:10 PDT"]
[Termination "Ninifu won by checkmate"]

1. e4 {[%clk 0:04:54.1]} 1... d5 {[%clk 0:04:58.7]} 2. exd5 {[%clk 0:04:38.4]}
2... Nf6 {[%clk 0:04:57.1]} 3. Nc3 {[%clk 0:04:02.8]} 3... Nxd5 {[%clk
0:04:55.3]} 4. Bc4 {[%clk 0:03:57.6]} 4... e6 {[%clk 0:04:48.1]} 5. d4 {[%clk
0:03:47.6]} 5... c6 {[%clk 0:04:46.4]} 6. Nf3 {[%clk 0:03:27.3]} 6... Be7 {[%clk
0:04:45.1]} 7. Nxd5 {[%clk 0:02:36.2]} 7... cxd5 {[%clk 0:04:43.2]} 8. Bb3
{[%clk 0:02:32.3]} 8... Nc6 {[%clk 0:04:40.3]} 9. Be3 {[%clk 0:01:57.7]} 9...
O-O {[%clk 0:04:37.4]} 10. O-O {[%clk 0:01:51.4]} 10... b6 {[%clk 0:04:27.9]}
11. Qd2 {[%clk 0:01:31.3]} 11... Bb7 {[%clk 0:04:25.9]} 12. Bg5 {[%clk
0:01:06.2]} 12... Na5 {[%clk 0:04:13.9]} 13. Bxe7 {[%clk 0:00:54.6]} 13... Qxe7
{[%clk 0:04:11.4]} 14. Qf4 {[%clk 0:00:52.2]} 14... Nc4 {[%clk 0:03:58.1]} 15.
Bxc4 {[%clk 0:00:42.2]} 15... dxc4 {[%clk 0:03:55.3]} 16. Ne5 {[%clk 0:00:40.6]}
16... Bd5 {[%clk 0:03:44.7]} 17. Ng4 {[%clk 0:00:33.6]} 17... f5 {[%clk
0:03:37.5]} 18. Ne5 {[%clk 0:00:25.8]} 18... g5 {[%clk 0:03:29.3]} 19. Qg3
{[%clk 0:00:17.9]} 19... Rad8 {[%clk 0:03:01.8]} 20. h4 {[%clk 0:00:11.4]} 20...
g4 {[%clk 0:02:51.1]} 21. Qf4 {[%clk 0:00:08.1]} 21... Qxh4 {[%clk 0:02:44.6]}
22. g3 {[%clk 0:00:01.8]} 22... Qh1# {[%clk 0:02:42.4]} 0-1

[Event "Live Chess"]
[Site "Chess.com"]
[Date "2023.05.20"]
[Round "-"]
[White "Hacker_2009"]
[Black "mach247"]
[Result "1-0"]
[WhiteElo "1931"]
[BlackElo "1322"]
[TimeControl "300"]
[EndTime "11:44:10 PDT"]
[Termination "Hacker_2009 won by resignation"]

1. d4 {[%clk 0:04:58.8]} 1... Nf6 {[%clk 0:04:58.7]} 2. Nf3 {[%clk 0:04:58.2]}
2... e6 {[%clk 0:04:58.1]} 3. c4 {[%clk 0:04:57.1]} 3... d5 {[%clk 0:04:57.1]}
4. e3 {[%clk 0:04:56.4]} 4... c6 {[%clk 0:04:54.5]} 5. Nc3 {[%clk 0:04:56]} 5...
Be7 {[%clk 0:04:52.3]} 6. cxd5 {[%clk 0:04:55.9]} 6... Nxd5 {[%clk 0:04:51.1]}
7. Nxd5 {[%clk 0:04:51.7]} 7... exd5 {[%clk 0:04:50.5]} 8. b3 {[%clk 0:04:48.4]}
8... O-O {[%clk 0:04:47.6]} 9. Bd3 {[%clk 0:04:47.1]} 9... Bg4 {[%clk
0:04:45.8]} 10. O-O {[%clk 0:04:45.6]} 10... Nd7 {[%clk 0:04:32.6]} 11. Bb2
{[%clk 0:04:43.4]} 11... Nf6 {[%clk 0:04:30.1]} 12. Rc1 {[%clk 0:04:40.8]} 12...
Ne4 {[%clk 0:04:29.2]} 13. Be2 {[%clk 0:04:40]} 13... Re8 {[%clk 0:04:21.5]} 14.
Ne5 {[%clk 0:04:33.3]} 14... Bxe2 {[%clk 0:04:20.6]} 15. Qxe2 {[%clk 0:04:33.2]}
15... Bf6 {[%clk 0:04:17.4]} 16. f4 {[%clk 0:04:32.3]} 16... c5 {[%clk
0:03:42.5]} 17. dxc5 {[%clk 0:04:27.8]} 17... Bxe5 {[%clk 0:03:39.6]} 18. Bxe5
{[%clk 0:04:24.8]} 18... f6 {[%clk 0:03:38.6]} 19. Bb2 {[%clk 0:04:22.4]} 19...
Rc8 {[%clk 0:03:32.2]} 20. b4 {[%clk 0:04:19.2]} 20... a5 {[%clk 0:03:27.6]} 21.
a3 {[%clk 0:04:17]} 21... axb4 {[%clk 0:03:27.1]} 22. axb4 {[%clk 0:04:15]}
22... Rc6 {[%clk 0:03:15.8]} 23. Bd4 {[%clk 0:04:09.4]} 23... Re7 {[%clk
0:02:59.5]} 24. Qa2 {[%clk 0:04:06.5]} 24... Rec7 {[%clk 0:02:54.5]} 25. Ra1
{[%clk 0:04:04.5]} 25... Kf7 {[%clk 0:02:41]} 26. b5 {[%clk 0:04:01.5]} 26...
Re6 {[%clk 0:02:34.8]} 27. b6 {[%clk 0:04:00.8]} 27... Nxc5 {[%clk 0:02:21.5]}
28. bxc7 {[%clk 0:03:51.3]} 28... Qxc7 {[%clk 0:02:16.9]} 29. Rac1 {[%clk
0:03:49.4]} 1-0

[Event "Live Chess"]
[Site "Chess.com"]
[Date "2023.05.20"]
[Round "-"]
[White "vovanada"]
[Black "Horseymobile"]
[Result "1-0"]
[WhiteElo "821"]
[BlackElo "1182"]
[TimeControl "300"]
[EndTime "11:44:14 PDT"]
[Termination "vovanada won by resignation"]

1. d4 {[%clk 0:04:57.6]} 1... Nf6 {[%clk 0:04:57.6]} 2. Bf4 {[%clk 0:04:54.9]}
2... d6 {[%clk 0:04:54.1]} 3. e3 {[%clk 0:04:54.3]} 3... g6 {[%clk 0:04:53]} 4.
Nf3 {[%clk 0:04:51]} 4... Bg7 {[%clk 0:04:52.4]} 5. c3 {[%clk 0:04:47.4]} 5...
O-O {[%clk 0:04:51.4]} 6. Nbd2 {[%clk 0:04:46.7]} 6... Nc6 {[%clk 0:04:50.1]} 7.
Bd3 {[%clk 0:04:38.4]} 7... Re8 {[%clk 0:04:39.3]} 8. Qb3 {[%clk 0:04:30.8]}
8... e5 {[%clk 0:04:22.7]} 9. Ng5 {[%clk 0:03:49.6]} 9... Qe7 {[%clk 0:03:58.1]}
10. Bg3 {[%clk 0:03:41]} 10... h6 {[%clk 0:03:49.4]} 11. Nge4 {[%clk 0:03:28.6]}
11... Nxe4 {[%clk 0:03:33.1]} 12. Bxe4 {[%clk 0:03:28.5]} 12... Na5 {[%clk
0:03:24.9]} 13. Qb4 {[%clk 0:03:06.8]} 13... b6 {[%clk 0:03:09.3]} 14. Bxa8
{[%clk 0:03:01.7]} 1-0

[Event "Live Chess"]
[Site "Chess.com"]
[Date "2023.05.20"]
[Round "-"]
[White "KeithArkell"]
[Black "Ayush_prahlad_Gupta"]
[Result "1-0"]
[WhiteElo "2609"]
[BlackElo "1795"]
[TimeControl "300"]
[EndTime "11:44:26 PDT"]
[Termination "KeithArkell won by resignation"]

1. d4 {[%clk 0:04:57.9]} 1... d5 {[%clk 0:04:58.4]} 2. Nf3 {[%clk 0:04:56.7]}
2... Nf6 {[%clk 0:04:57.2]} 3. c4 {[%clk 0:04:56]} 3... Bf5 {[%clk 0:04:53.2]}
4. cxd5 {[%clk 0:04:55.2]} 4... e6 {[%clk 0:04:44.5]} 5. dxe6 {[%clk 0:04:53.3]}
5... Bxe6 {[%clk 0:04:44.4]} 6. Nc3 {[%clk 0:04:52.6]} 6... Bb4 {[%clk
0:04:42.7]} 7. Qa4+ {[%clk 0:04:49.6]} 7... Nc6 {[%clk 0:04:40.8]} 8. Ne5 {[%clk
0:04:48.6]} 8... Bxc3+ {[%clk 0:04:40.1]} 9. bxc3 {[%clk 0:04:47.5]} 9... Qd5
{[%clk 0:04:29.6]} 10. Nxc6 {[%clk 0:04:45.1]} 10... bxc6 {[%clk 0:04:29.5]} 11.
e3 {[%clk 0:04:43.2]} 11... Qg5 {[%clk 0:04:24.7]} 12. Qxc6+ {[%clk 0:04:40.3]}
12... Ke7 {[%clk 0:04:22.6]} 13. Ba3+ {[%clk 0:04:39.5]} 13... Kd8 {[%clk
0:04:20.1]} 14. Qxa8+ {[%clk 0:04:38.5]} 14... Kd7 {[%clk 0:04:19.3]} 15. Qxh8
{[%clk 0:04:35.1]} 15... Ne4 {[%clk 0:04:14.8]} 16. Qf8 {[%clk 0:04:21.7]} 16...
Nxc3 {[%clk 0:03:55.3]} 17. Qe7+ {[%clk 0:04:19.6]} 17... Qxe7 {[%clk
0:03:54.6]} 18. Bxe7 {[%clk 0:04:19.3]} 18... Kxe7 {[%clk 0:03:54.5]} 19. Bd3
{[%clk 0:04:17.6]} 1-0